[Event "Chess Festival Groningen 2023 | A"]
[Site "Groningen, Netherlands"]
[Date "2023.12.30"]
[Round "9.15"]
[White "Jaiveer, Mahendru"]
[Black "Kollen, Zyon"]
[Result "1-0"]
[TimeControl "90min/40moves + 30min + 30sec/move"]
[WhiteFideId "25611151"]
[WhiteElo "2294"]
[BlackElo "2318"]

1. e4 {[%clk 01:11:04]} {[%emt 00:19:55]} e5 {[%clk 01:30:53]} {[%emt
00:00:07]} 2. Nf3 {[%clk 01:11:31]} {[%emt 00:00:03]} Nc6 {[%clk 01:31:19]}
{[%emt 00:00:05]} 3. Bc4 {[%clk 01:11:59]} {[%emt 00:00:02]} Bc5 {[%clk
01:31:40]} {[%emt 00:00:08]} 4. c3 {[%clk 01:12:25]} {[%emt 00:00:05]} Nf6
{[%clk 01:32:01]} {[%emt 00:00:09]} 5. d4 {[%clk 01:12:51]} {[%emt 00:00:04]}
exd4 {[%clk 01:32:18]} {[%emt 00:00:12]} 6. e5 {[%clk 01:13:15]} {[%emt
00:00:06]} d5 {[%clk 01:30:35]} {[%emt 00:02:13]} 7. Bb5 {[%clk 01:13:42]}
{[%emt 00:00:04]} Ne4 {[%clk 01:27:58]} {[%emt 00:03:06]} 8. cxd4 {[%clk
01:14:07]} {[%emt 00:00:05]} Bb4+ {[%clk 01:28:04]} {[%emt 00:00:24]} 9. Bd2
{[%clk 01:14:33]} {[%emt 00:00:05]} Bxd2+ {[%clk 01:15:10]} {[%emt 00:13:23]}
10. Nbxd2 {[%clk 01:14:30]} {[%emt 00:00:34]} Bd7 {[%clk 01:15:25]} {[%emt
00:00:14]} 11. Rc1 {[%emt 01:05:18]} O-O 12. Bxc6 {[%clk 00:20:05]} {[%emt
00:02:38]} Bxc6 {[%clk 01:02:31]} {[%emt 00:01:24]} 13. O-O {[%clk 00:20:25]}
{[%emt 00:00:09]} a5 {[%clk 00:55:50]} {[%emt 00:07:11]} 14. Qb3 {[%clk
00:16:07]} {[%emt 00:04:48]} Ra6 {[%clk 00:41:56]} {[%emt 00:14:24]} 15. Qe3
{[%clk 00:14:47]} {[%emt 00:01:50]} Rb6 {[%clk 00:35:37]} {[%emt 00:06:49]} 16.
b3 {[%clk 00:14:56]} {[%emt 00:00:21]} a4 {[%clk 00:31:48]} {[%emt 00:04:19]}
17. Nxe4 {[%clk 00:14:49]} {[%emt 00:00:37]} dxe4 {[%clk 00:32:13]} {[%emt
00:00:04]} 18. Nd2 {[%clk 00:15:16]} {[%emt 00:00:04]} axb3 {[%clk 00:19:58]}
{[%emt 00:12:45]} 19. axb3 {[%clk 00:15:37]} {[%emt 00:00:09]} Qd7 {[%clk
00:18:56]} {[%emt 00:01:32]} 20. Rfd1 {[%clk 00:12:21]} {[%emt 00:03:47]} Qf5
{[%clk 00:12:54]} {[%emt 00:06:31]} 21. Rc5 {[%clk 00:10:18]} {[%emt 00:02:33]}
Rd8 {[%clk 00:11:18]} {[%emt 00:02:06]} 22. d5 {[%clk 00:04:33]} {[%emt
00:06:15]} Rxd5 {[%clk 00:09:29]} {[%emt 00:02:20]} 23. Rxd5 {[%clk 00:04:53]}
{[%emt 00:00:09]} Bxd5 {[%clk 00:09:55]} {[%emt 00:00:04]} 24. Qc5 {[%clk
00:01:21]} {[%emt 00:04:02]} Qe6 {[%clk 00:04:23]} {[%emt 00:06:02]} 25. Nxe4
{[%clk 00:00:55]} {[%emt 00:00:57]} Rc6 {[%clk 00:01:26]} {[%emt 00:03:27]} 26.
Qd4 {[%clk 00:00:52]} {[%emt 00:00:33]} h6 {[%clk 00:01:02]} {[%emt 00:00:54]}
27. Nc5 {[%clk 00:00:48]} {[%emt 00:00:34]} Qe7 {[%clk 00:01:22]} {[%emt
00:00:10]} 28. b4 {[%clk 00:01:17]} {[%emt 00:00:01]} Be6 {[%clk 00:01:08]}
{[%emt 00:00:44]} 29. Qe4 {[%clk 00:00:54]} {[%emt 00:00:54]} Rb6 {[%clk
00:01:03]} {[%emt 00:00:35]} 30. f4 {[%clk 00:00:59]} {[%emt 00:00:24]} g6
{[%clk 00:01:03]} {[%emt 00:00:30]} 31. h3 {[%clk 00:00:52]} {[%emt 00:00:37]}
h5 {[%clk 00:00:47]} {[%emt 00:00:47]} 32. Qd4 {[%clk 00:00:41]} {[%emt
00:00:41]} Kg7 {[%clk 00:00:44]} {[%emt 00:00:33]} 33. Ra1 {[%clk 00:00:34]}
{[%emt 00:00:37]} Rc6 {[%clk 00:00:37]} {[%emt 00:00:37]} 34. Ra8 {[%clk
00:00:35]} {[%emt 00:00:29]} b6 {[%clk 00:00:44]} {[%emt 00:00:23]} 35. Nxe6+
{[%clk 00:00:35]} {[%emt 00:00:29]} Rxe6 {[%clk 00:00:58]} {[%emt 00:00:16]} 36.
Kh2 {[%clk 00:00:37]} {[%emt 00:00:28]} g5 {[%clk 00:00:57]} {[%emt 00:00:32]}
37. g3 {[%clk 00:00:34]} {[%emt 00:00:33]} gxf4 {[%clk 00:00:59]} {[%emt
00:00:27]} 38. gxf4 {[%clk 00:00:56]} {[%emt 00:00:08]} Qh4 {[%clk 00:01:07]}
{[%emt 00:00:22]} 39. Qe3 {[%clk 00:00:36]} {[%emt 00:00:51]} Kh7 {[%clk
00:00:48]} {[%emt 00:00:48]} 40. Rf8 {[%clk 00:00:40]} {[%emt 00:00:26]} Kg7
{[%clk 00:00:48]} {[%emt 00:00:29]} 41. Rb8 {[%clk 00:16:47]} {[%emt 00:14:24]}
Kh7 {[%clk 00:17:25]} {[%emt 00:13:54]} 42. b5 {[%clk 00:12:48]} {[%emt
00:04:29]} Rg6 {[%clk 00:09:58]} {[%emt 00:07:55]} 43. Rc8 {[%clk 00:07:21]}
{[%emt 00:05:57]} Rg4 {[%clk 00:07:40]} {[%emt 00:02:47]} 44. e6 {[%clk
00:04:15]} {[%emt 00:03:37]} fxe6 {[%clk 00:04:05]} {[%emt 00:04:05]} 45. Rxc7+
{[%clk 00:04:27]} {[%emt 00:00:19]} Kh6 {[%clk 00:03:42]} {[%emt 00:00:54]} 46.
f5+ {[%clk 00:03:25]} {[%emt 00:01:31]} Rf4 {[%clk 00:04:05]} {[%emt 00:00:06]}
47. Qxe6+ {[%clk 00:03:51]} {[%emt 00:00:05]} 1-0

[Event "Chess Festival Groningen 2023 | A"]
[Site "Groningen, Netherlands"]
[Date "2023.12.30"]
[Round "9.16"]
[White "Toktomushev, Teimur"]
[Black "Jacobs, Florian"]
[Result "1-0"]
[TimeControl "90min/40moves + 30min + 30sec/move"]
[WhiteElo "2249"]
[BlackElo "2218"]

1. d4 {[%clk 01:30:58]} {[%emt 00:00:01]} Nf6 {[%clk 01:30:50]} {[%emt
00:00:11]} 2. c4 {[%clk 01:30:33]} {[%emt 00:00:55]} e6 {[%clk 01:31:11]}
{[%emt 00:00:08]} 3. Nf3 {[%clk 01:30:59]} {[%emt 00:00:04]} d5 {[%clk
01:31:32]} {[%emt 00:00:09]} 4. Nc3 {[%clk 01:31:24]} {[%emt 00:00:05]} Bb4
{[%clk 01:31:48]} {[%emt 00:00:13]} 5. Qa4+ {[%clk 01:31:48]} {[%emt 00:00:07]}
Nc6 {[%clk 01:32:12]} {[%emt 00:00:06]} 6. e3 {[%clk 01:32:11]} {[%emt
00:00:07]} O-O {[%clk 01:32:20]} {[%emt 00:00:21]} 7. Qc2 {[%clk 01:32:38]}
{[%emt 00:00:04]} Na5 {[%clk 01:31:02]} {[%emt 00:01:48]} 8. c5 {[%clk
01:08:27]} {[%emt 00:24:41]} b6 {[%clk 01:30:15]} {[%emt 00:01:16]} 9. a3
{[%clk 01:03:40]} {[%emt 00:05:18]} Bxc3+ {[%clk 01:30:36]} {[%emt 00:00:09]}
10. Qxc3 {[%clk 01:04:06]} {[%emt 00:00:04]} e5 {[%clk 01:30:28]} {[%emt
00:00:38]} 11. Nxe5 {[%clk 00:45:12]} {[%emt 00:19:24]} Ne4 {[%clk 01:30:06]}
{[%emt 00:00:51]} 12. Qc2 {[%clk 00:45:14]} {[%emt 00:00:29]} Bf5 {[%clk
01:28:05]} {[%emt 00:02:31]} 13. g4 {[%clk 00:32:24]} {[%emt 00:13:20]} f6
{[%clk 00:59:02]} {[%emt 00:29:33]} 14. Nf7 {[%clk 00:13:07]} {[%emt 00:19:47]}
Rxf7 {[%clk 00:58:13]} {[%emt 00:01:18]} 15. gxf5 {[%clk 00:12:27]} {[%emt
00:01:11]} bxc5 {[%clk 00:32:47]} {[%emt 00:25:56]} 16. f3 {[%clk 00:04:40]}
{[%emt 00:08:18]} Nd6 {[%clk 00:21:43]} {[%emt 00:11:33]} 17. dxc5 {[%clk
00:05:03]} {[%emt 00:00:07]} Ndc4 {[%clk 00:22:07]} {[%emt 00:00:06]} 18. b4
{[%clk 00:02:59]} {[%emt 00:02:35]} Nc6 {[%clk 00:22:30]} {[%emt 00:00:06]} 19.
Bxc4 {[%clk 00:02:55]} {[%emt 00:00:34]} dxc4 {[%clk 00:22:58]} {[%emt
00:00:02]} 20. Bb2 {[%clk 00:02:25]} {[%emt 00:01:00]} Qe8 {[%clk 00:15:46]}
{[%emt 00:07:42]} 21. e4 {[%clk 00:02:37]} {[%emt 00:00:19]} Rd8 {[%clk
00:11:33]} {[%emt 00:04:43]} 22. O-O {[%clk 00:01:57]} {[%emt 00:01:10]} Kh8
{[%clk 00:09:22]} {[%emt 00:02:41]} 23. Rad1 {[%clk 00:01:53]} {[%emt
00:00:34]} Rfd7 {[%clk 00:09:07]} {[%emt 00:00:45]} 24. Rxd7 {[%clk 00:01:37]}
{[%emt 00:00:47]} Qxd7 {[%clk 00:09:34]} {[%emt 00:00:02]} 25. Qxc4 {[%clk
00:01:46]} {[%emt 00:00:22]} Qd2 {[%clk 00:09:49]} {[%emt 00:00:14]} 26. Bc1
{[%clk 00:01:57]} {[%emt 00:00:19]} Qd7 {[%clk 00:09:26]} {[%emt 00:00:52]} 27.
Bf4 {[%clk 00:01:25]} {[%emt 00:01:02]} g6 {[%clk 00:07:11]} {[%emt 00:02:45]}
28. Qe6 {[%clk 00:01:11]} {[%emt 00:00:45]} Qd4+ {[%clk 00:06:35]} {[%emt
00:01:05]} 29. Kh1 {[%clk 00:01:03]} {[%emt 00:00:38]} Qd3 {[%clk 00:04:51]}
{[%emt 00:02:15]} 30. Qxf6+ {[%clk 00:01:02]} {[%emt 00:00:31]} Kg8 {[%clk
00:05:19]} 31. Kg2 {[%clk 00:00:41]} {[%emt 00:00:52]} Qb5 {[%clk 00:01:41]}
{[%emt 00:04:07]} 32. fxg6 {[%clk 00:00:50]} {[%emt 00:00:22]} hxg6 {[%clk
00:02:03]} {[%emt 00:00:08]} 33. Qxg6+ {[%clk 00:01:06]} {[%emt 00:00:14]} Kh8
{[%clk 00:02:32]} {[%emt 00:00:01]} 34. Qh6+ {[%clk 00:01:07]} {[%emt
00:00:29]} Kg8 {[%clk 00:03:00]} {[%emt 00:00:02]} 35. Rg1 {[%clk 00:01:12]}
{[%emt 00:00:25]} Kf7 {[%clk 00:03:07]} {[%emt 00:00:22]} 36. Kh1 {[%clk
00:00:42]} {[%emt 00:01:01]} Nd4 {[%clk 00:01:59]} {[%emt 00:01:36]} 1-0

[Event "Chess Festival Groningen 2023 | A"]
[Site "Groningen, Netherlands"]
[Date "2023.12.30"]
[Round "9.17"]
[White "Kanyamarala, Trisha"]
[Black "Krasenkow, Michal"]
[Result "0-1"]
[TimeControl "90min/40moves + 30min + 30sec/move"]
[WhiteElo "2184"]
[BlackElo "2532"]

1. d4 {[%clk 01:30:52]} {[%emt 00:00:07]} d6 {[%clk 01:30:54]} {[%emt
00:00:06]} 2. e4 {[%clk 01:31:13]} {[%emt 00:00:09]} g6 {[%clk 01:31:19]}
{[%emt 00:00:06]} 3. Nf3 {[%clk 01:31:28]} {[%emt 00:00:14]} Bg7 {[%clk
01:31:44]} {[%emt 00:00:05]} 4. Be3 {[%clk 01:31:40]} {[%emt 00:00:18]} Nf6
{[%clk 01:32:04]} {[%emt 00:00:11]} 5. Nc3 {[%clk 01:32:01]} {[%emt 00:00:08]}
Bg4 {[%clk 01:31:15]} {[%emt 00:01:19]} 6. h3 {[%clk 01:32:10]} {[%emt
00:00:21]} Bxf3 {[%clk 01:31:37]} {[%emt 00:00:07]} 7. Qxf3 {[%clk 01:32:35]}
{[%emt 00:00:05]} Nc6 {[%clk 01:30:50]} {[%emt 00:01:18]} 8. Bb5 {[%clk
01:30:18]} {[%emt 00:02:47]} O-O {[%clk 01:30:48]} {[%emt 00:00:31]} 9. Bxc6
{[%clk 01:28:10]} {[%emt 00:02:38]} bxc6 {[%clk 01:31:16]} {[%emt 00:00:02]} 10.
O-O {[%clk 01:26:11]} {[%emt 00:02:29]} Nd7 {[%clk 01:28:27]} {[%emt 00:03:20]}
11. Qe2 {[%clk 01:23:27]} {[%emt 00:03:13]} Qb8 {[%clk 01:25:35]} {[%emt
00:03:22]} 12. Rab1 {[%clk 01:21:17]} {[%emt 00:02:40]} a5 {[%clk 01:25:17]}
{[%emt 00:00:48]} 13. f4 {[%clk 01:17:29]} {[%emt 00:04:17]} Qb7 {[%clk
01:23:04]} {[%emt 00:02:44]} 14. Qd2 {[%clk 01:07:42]} {[%emt 00:10:16]} f5
{[%clk 01:20:10]} {[%emt 00:03:24]} 15. Rfe1 {[%clk 01:02:17]} {[%emt
00:05:56]} Rae8 {[%clk 01:14:19]} {[%emt 00:06:21]} 16. Bf2 {[%clk 00:59:33]}
{[%emt 00:03:13]} Bh6 {[%clk 01:11:30]} {[%emt 00:03:19]} 17. Bg3 {[%clk
00:56:04]} {[%emt 00:04:00]} fxe4 {[%clk 01:05:05]} {[%emt 00:06:55]} 18. Nxe4
{[%clk 00:54:44]} {[%emt 00:01:49]} e5 {[%clk 01:03:59]} {[%emt 00:01:38]} 19.
dxe5 {[%clk 00:46:19]} {[%emt 00:08:55]} Rxe5 {[%clk 01:01:49]} {[%emt
00:02:41]} 20. Ng5 {[%clk 00:44:12]} {[%emt 00:02:37]} Rd5 {[%clk 00:57:48]}
{[%emt 00:04:31]} 21. Qe2 {[%clk 00:42:36]} {[%emt 00:02:06]} Bxg5 {[%clk
00:57:50]} {[%emt 00:00:28]} 22. fxg5 {[%clk 00:37:20]} {[%emt 00:05:46]} Rxg5
{[%clk 00:56:34]} {[%emt 00:01:46]} 23. Qe7 {[%clk 00:29:59]} {[%emt 00:07:50]}
Nf6 {[%clk 00:35:50]} {[%emt 00:21:13]} 24. Rf1 {[%clk 00:18:44]} {[%emt
00:11:46]} Qb6+ {[%clk 00:18:40]} {[%emt 00:17:41]} 25. Kh1 {[%clk 00:04:27]}
{[%emt 00:14:47]} Qd4 {[%clk 00:15:34]} {[%emt 00:03:36]} 26. Qe6+ {[%clk
00:03:41]} {[%emt 00:01:16]} Kg7 {[%clk 00:15:24]} {[%emt 00:00:41]} 27. Rbd1
{[%clk 00:02:51]} {[%emt 00:01:19]} Qxb2 {[%clk 00:13:49]} {[%emt 00:02:05]} 28.
Rb1 {[%clk 00:02:08]} {[%emt 00:01:14]} Qd4 {[%clk 00:13:38]} {[%emt 00:00:40]}
29. Rbd1 {[%clk 00:02:22]} {[%emt 00:00:17]} Qe4 {[%clk 00:13:42]} {[%emt
00:00:26]} 30. Rxf6 {[%clk 00:00:33]} {[%emt 00:02:19]} Qxe6 {[%clk 00:14:00]}
{[%emt 00:00:12]} 31. Rxe6 {[%clk 00:00:56]} {[%emt 00:00:07]} Rxg3 {[%clk
00:14:25]} {[%emt 00:00:04]} 32. Re7+ {[%clk 00:01:01]} {[%emt 00:00:25]} Rf7
{[%clk 00:14:47]} {[%emt 00:00:08]} 33. Rde1 {[%clk 00:01:15]} {[%emt
00:00:17]} Ra3 {[%clk 00:14:56]} {[%emt 00:00:21]} 34. Re8 {[%clk 00:01:16]}
{[%emt 00:00:29]} Rxa2 {[%clk 00:15:18]} {[%emt 00:00:07]} 35. R1e2 {[%clk
00:01:37]} {[%emt 00:00:10]} Rb2 {[%clk 00:13:47]} {[%emt 00:02:00]} 36. Ra8
{[%clk 00:01:12]} {[%emt 00:00:56]} Rb5 {[%clk 00:14:04]} {[%emt 00:00:12]} 37.
Kh2 {[%clk 00:01:06]} {[%emt 00:00:37]} Rc5 {[%clk 00:12:43]} {[%emt 00:01:51]}
38. Kg3 {[%clk 00:01:13]} {[%emt 00:00:22]} g5 {[%clk 00:11:49]} {[%emt
00:01:23]} 39. Ra7 {[%clk 00:00:54]} {[%emt 00:00:49]} h5 {[%clk 00:11:49]}
{[%emt 00:00:30]} 40. Ra8 {[%clk 00:00:42]} {[%emt 00:00:42]} h4+ {[%clk
00:08:36]} {[%emt 00:03:43]} 41. Kh2 {[%clk 00:27:01]} {[%emt 00:04:11]} Kf6
{[%clk 00:34:21]} {[%emt 00:04:45]} 42. Ra6 {[%clk 00:22:45]} {[%emt 00:04:46]}
Re7 {[%clk 00:31:33]} {[%emt 00:03:18]} 43. Rd2 {[%clk 00:21:04]} {[%emt
00:02:12]} Ke6 {[%clk 00:31:42]} {[%emt 00:00:22]} 44. Ra8 {[%clk 00:19:24]}
{[%emt 00:02:10]} Rf5 {[%clk 00:26:30]} {[%emt 00:05:42]} 45. Rd8 {[%clk
00:17:39]} {[%emt 00:02:15]} Kf7 {[%clk 00:24:54]} {[%emt 00:02:06]} 46. Rc8
{[%clk 00:16:40]} {[%emt 00:01:28]} Rf1 {[%clk 00:25:03]} {[%emt 00:00:21]} 47.
c4 {[%clk 00:15:09]} {[%emt 00:02:01]} a4 {[%clk 00:21:22]} {[%emt 00:04:11]}
48. c5 {[%clk 00:13:30]} {[%emt 00:02:09]} d5 {[%clk 00:21:43]} {[%emt
00:00:09]} 49. Ra2 {[%clk 00:13:31]} {[%emt 00:00:30]} d4 {[%clk 00:18:08]}
{[%emt 00:04:05]} 50. Rd8 {[%clk 00:12:55]} {[%emt 00:01:06]} Re4 {[%clk
00:14:25]} {[%emt 00:04:11]} 51. Rd7+ {[%clk 00:10:27]} {[%emt 00:02:59]} Ke6
{[%clk 00:14:51]} {[%emt 00:00:05]} 52. Rd8 {[%clk 00:08:28]} {[%emt 00:02:29]}
Ke7 {[%clk 00:14:51]} {[%emt 00:00:30]} 53. Rc8 {[%clk 00:08:02]} {[%emt
00:00:55]} Kd7 {[%clk 00:14:19]} {[%emt 00:01:02]} 54. Rg8 {[%clk 00:08:18]}
{[%emt 00:00:14]} Ree1 {[%clk 00:13:11]} {[%emt 00:01:38]} 55. g4 {[%clk
00:07:36]} {[%emt 00:01:12]} d3 {[%clk 00:13:36]} {[%emt 00:00:05]} 56. Rg7+
{[%clk 00:07:30]} {[%emt 00:00:36]} Ke6 {[%clk 00:13:46]} {[%emt 00:00:20]} 57.
Kg2 {[%clk 00:07:40]} {[%emt 00:00:20]} Rg1+ {[%clk 00:12:31]} {[%emt
00:01:45]} 58. Kh2 {[%clk 00:06:03]} {[%emt 00:02:07]} Re2+ {[%clk 00:12:15]}
{[%emt 00:00:46]} 59. Kxg1 {[%clk 00:05:27]} {[%emt 00:01:07]} Rxa2 {[%clk
00:12:39]} {[%emt 00:00:06]} 60. Kf1 {[%clk 00:05:52]} {[%emt 00:00:04]} Ra1+
{[%clk 00:13:06]} {[%emt 00:00:04]} 0-1

[Event "Chess Festival Groningen 2023 | A"]
[Site "Groningen, Netherlands"]
[Date "2023.12.30"]
[Round "9.18"]
[White "Labruyere, Roger"]
[Black "Van Helvoort, Rob"]
[Result "0-1"]
[TimeControl "90min/40moves + 30min + 30sec/move"]
[WhiteElo "2208"]
[BlackElo "2098"]

1. d4 {[%clk 01:30:57]} {[%emt 00:00:02]} e6 {[%clk 01:30:47]} {[%emt
00:00:14]} 2. c4 {[%clk 01:31:22]} {[%emt 00:00:05]} b6 {[%clk 01:30:53]}
{[%emt 00:00:24]} 3. e4 {[%clk 01:30:48]} {[%emt 00:01:03]} Bb4+ {[%clk
01:31:10]} {[%emt 00:00:13]} 4. Bd2 {[%clk 01:29:18]} {[%emt 00:01:59]} Bxd2+
{[%clk 01:31:33]} {[%emt 00:00:07]} 5. Qxd2 {[%clk 01:29:43]} {[%emt 00:00:05]}
d5 {[%clk 01:31:41]} {[%emt 00:00:22]} 6. Bd3 {[%clk 01:26:40]} {[%emt
00:03:33]} Nc6 {[%clk 01:31:20]} {[%emt 00:00:51]} 7. Nf3 {[%clk 01:24:58]}
{[%emt 00:02:12]} Bb7 {[%clk 01:21:43]} {[%emt 00:10:08]} 8. Nc3 {[%clk
01:20:51]} {[%emt 00:04:37]} dxe4 {[%clk 01:21:14]} {[%emt 00:00:59]} 9. Bxe4
{[%clk 01:20:49]} {[%emt 00:00:32]} Nf6 {[%clk 01:21:21]} {[%emt 00:00:24]} 10.
Bc2 {[%clk 01:20:59]} {[%emt 00:00:20]} O-O {[%clk 01:20:06]} {[%emt 00:01:45]}
11. O-O {[%clk 01:19:47]} {[%emt 00:01:41]} Na5 {[%clk 01:18:22]} {[%emt
00:02:14]} 12. Ne5 {[%clk 01:11:30]} {[%emt 00:08:47]} c5 {[%clk 01:16:06]}
{[%emt 00:02:47]} 13. Ne2 {[%clk 01:07:19]} {[%emt 00:04:41]} Qc7 {[%clk
01:11:34]} {[%emt 00:05:02]} 14. Rac1 {[%clk 01:01:23]} {[%emt 00:06:26]} cxd4
{[%clk 01:07:26]} {[%emt 00:04:38]} 15. Qxd4 {[%clk 01:00:50]} {[%emt
00:01:03]} Nc6 {[%clk 01:07:37]} {[%emt 00:00:19]} 16. Nxc6 {[%clk 01:00:50]}
{[%emt 00:00:31]} Qxc6 {[%clk 01:08:01]} {[%emt 00:00:06]} 17. f3 {[%clk
01:00:55]} {[%emt 00:00:25]} Rad8 {[%clk 01:06:12]} {[%emt 00:02:19]} 18. Qe3
{[%clk 00:59:00]} {[%emt 00:02:25]} h6 {[%clk 00:54:30]} {[%emt 00:12:13]} 19.
b3 {[%clk 00:51:35]} {[%emt 00:07:55]} Ng4 {[%clk 00:50:00]} {[%emt 00:04:59]}
20. Qc3 {[%clk 00:41:24]} {[%emt 00:10:41]} Qc5+ {[%clk 00:50:15]} {[%emt
00:00:15]} 21. Kh1 {[%clk 00:41:50]} {[%emt 00:00:03]} Nf2+ {[%clk 00:50:29]}
{[%emt 00:00:16]} 22. Rxf2 {[%clk 00:42:12]} {[%emt 00:00:08]} Qxf2 {[%clk
00:49:58]} {[%emt 00:00:07]} 23. Qb2 {[%clk 00:37:31]} {[%emt 00:06:05]} Qe3
{[%clk 00:47:03]} {[%emt 00:03:25]} 24. Ng3 {[%clk 00:33:22]} {[%emt 00:04:39]}
Rd7 {[%clk 00:39:59]} {[%emt 00:07:35]} 25. Nf1 {[%clk 00:26:37]} {[%emt
00:07:15]} Qf4 {[%clk 00:31:27]} {[%emt 00:09:03]} 26. Bb1 {[%clk 00:25:16]}
{[%emt 00:01:51]} g6 {[%clk 00:28:28]} {[%emt 00:03:30]} 27. Re1 {[%clk
00:22:37]} {[%emt 00:03:08]} Rfd8 {[%clk 00:24:38]} {[%emt 00:04:21]} 28. Qc2
{[%clk 00:22:21]} {[%emt 00:00:46]} Qf6 {[%clk 00:18:21]} {[%emt 00:06:47]} 29.
a3 {[%clk 00:21:42]} {[%emt 00:01:09]} Rd4 {[%clk 00:16:54]} {[%emt 00:01:57]}
30. h3 {[%clk 00:19:21]} {[%emt 00:02:51]} e5 {[%clk 00:16:53]} {[%emt
00:00:32]} 31. Qe2 {[%clk 00:13:40]} {[%emt 00:06:10]} Qd6 {[%clk 00:16:49]}
{[%emt 00:00:34]} 32. Bc2 {[%clk 00:13:11]} {[%emt 00:00:59]} Re8 {[%clk
00:16:37]} {[%emt 00:00:42]} 33. Qe3 {[%clk 00:12:52]} {[%emt 00:00:49]} Kg7
{[%clk 00:16:26]} {[%emt 00:00:41]} 34. Qc3 {[%clk 00:12:31]} {[%emt 00:00:51]}
f6 {[%clk 00:16:16]} {[%emt 00:00:41]} 35. Ng3 {[%clk 00:09:23]} {[%emt
00:03:37]} Qd7 {[%clk 00:14:24]} {[%emt 00:02:23]} 36. Kh2 {[%clk 00:06:34]}
{[%emt 00:03:18]} h5 {[%clk 00:12:38]} {[%emt 00:02:16]} 37. Kh1 {[%clk
00:03:32]} {[%emt 00:03:32]} h4 {[%clk 00:12:00]} {[%emt 00:01:09]} 38. Nf1
{[%clk 00:03:37]} {[%emt 00:00:26]} Qd6 {[%clk 00:08:56]} {[%emt 00:03:34]} 39.
Ne3 {[%clk 00:03:04]} {[%emt 00:01:02]} Qd7 {[%clk 00:06:20]} {[%emt 00:03:07]}
40. Ng4 {[%clk 00:02:56]} {[%emt 00:00:38]} Rd2 {[%clk 00:03:20]} {[%emt
00:03:30]} 41. Qe3 {[%clk 00:00:35]} {[%emt 00:02:52]} g5 {[%clk 00:00:59]}
{[%emt 00:02:51]} 42. Be4 {[%clk 00:27:53]} {[%emt 00:03:12]} Rd1 {[%clk
00:25:07]} {[%emt 00:06:23]} 43. Rxd1 {[%clk 00:27:21]} {[%emt 00:01:02]} Qxd1+
{[%clk 00:25:27]} {[%emt 00:00:09]} 44. Kh2 {[%clk 00:27:50]} {[%emt 00:00:01]}
Qd7 {[%clk 00:24:48]} {[%emt 00:01:09]} 45. Bxb7 {[%clk 00:27:43]} {[%emt
00:00:38]} Qxb7 {[%clk 00:25:11]} {[%emt 00:00:07]} 46. Nf2 {[%clk 00:24:44]}
{[%emt 00:03:28]} Rd8 {[%clk 00:24:19]} {[%emt 00:01:23]} 47. Ne4 {[%clk
00:24:41]} {[%emt 00:00:32]} Qe7 {[%clk 00:24:38]} {[%emt 00:00:11]} 48. b4
{[%clk 00:24:20]} {[%emt 00:00:52]} f5 {[%clk 00:22:09]} {[%emt 00:02:59]} 49.
Nc3 {[%clk 00:24:46]} {[%emt 00:00:04]} e4 {[%clk 00:22:10]} {[%emt 00:00:29]}
50. Kh1 {[%clk 00:21:30]} {[%emt 00:03:46]} Rd3 {[%clk 00:21:52]} {[%emt
00:00:48]} 51. Qe1 {[%clk 00:21:59]} Qe5 {[%clk 00:20:59]} {[%emt 00:01:23]} 52.
Qc1 {[%clk 00:19:01]} {[%emt 00:03:28]} e3 {[%emt 00:05:35]} 53. Ne2 {[%clk
00:19:16]} Rd2 {[%clk 00:15:27]} {[%emt 00:01:11]} 0-1